bitfinex-derivatives/quotes_SOLF0:USTF0_20240907
["timestamp","ask_amount","ask_price","bid_price","bid_amount"]
[1725694935803,9.63,127.92,127.86,9.63]
[1725694936004,3.90066378,127.91,127.86,9.63]
[1725694936213,13.5954,127.93,127.86,9.63]
[1725694936815,17.59814673,127.93,127.86,9.63]
[1725694938215,3.91,127.9,127.87,3.9108]
[1725694939519,3.9102,127.89,127.86,13.541]
[1725694940613,3.9101,127.9,127.87,3.9107]
[1725694941113,3.9098,127.91,127.88,9.63]
[1725694941521,3.91,127.9,127.86,13.5408]
[1725694942116,3.91,127.9,127.86,17.45085072]
[1725694945616,3.91,127.9,127.87,3.9107]
[1725694948615,3.9097,127.91,127.87,3.9107]
[1725694949016,3.9097,127.91,127.87,13.5407]
[1725694949323,3.9097,127.91,127.88,3.9104]
[1725694952226,3.9093,127.92,127.89,13.5401]
[1725694952424,9.63,127.96,127.9,9.63]
[1725694952726,13.44900234,127.96,127.9,9.63]
[1725694952927,13.44900234,127.96,127.9,13.5398]
[1725694954223,3.909,127.93,127.9,13.5398]
[1725694955221,3.9094,127.92,127.89,3.91]
[1725694955919,3.9094,127.92,127.88,3.9104]
[1725694956921,3.9096,127.91,127.88,3.9104]
[1725694957116,9.63,127.95,127.78,7.827]
[1725694957117,9.63,127.93,127.78,7.827]
[1725694957421,2.7115,127.92,127.86,9.63]
[1725694957626,2.7115,127.92,127.87,3.9107]
[1725694957627,3.9099,127.9,127.87,3.9107]
[1725694958023,2.7115,127.92,127.87,13.5407]
[1725694958226,3.9096,127.91,127.87,13.5407]
[1725694960729,3.9096,127.91,127.88,3.9104]
[1725694964230,2.7115,127.92,127.87,9.63]
[1725694964930,3.9097,127.91,127.87,13.5406]
[1725694967732,3.9097,127.91,127.88,3.9104]
[1725694968136,1.3547,127.92,127.9,9.63]
[1725694968342,3.9091,127.93,127.9,9.63]
[1725694971637,3.9091,127.93,127.9,13.5398]
[1725694972037,3.9091,127.93,127.9,3.9098]
[1725694977039,9.63,127.95,127.9,3.9098]
[1725694977244,9.63,127.92,127.86,9.63]
[1725694977841,3.9098,127.91,127.87,3.9105]
[1725694978049,3.9098,127.91,127.86,9.63]
[1725694978943,3.9098,127.91,127.87,3.9106]
[1725694980040,6.6133,127.92,127.89,9.63]
[1725694980239,6.6133,127.92,127.85,3.97436161]
[1725694980442,6.6133,127.92,127.88,9.63]
[1725694980647,6.6133,127.92,127.88,13.62352553]
[1725694980840,6.6133,127.92,127.88,17.53382553]
[1725694981445,6.6133,127.92,127.87,13.5405]
[1725694981446,3.9096,127.91,127.87,13.5405]
[1725694981749,3.9096,127.91,127.87,17.40496242]
[1725694983760,3.9096,127.91,127.88,3.9104]
[1725694984659,3.9096,127.91,127.87,17.40506242]
[1725694988363,3.9096,127.91,127.88,3.9104]
[1725694988964,3.9096,127.91,127.87,17.40506242]
[1725694990469,6.6134,127.92,127.88,3.9104]
[1725694990860,2.704,127.92,127.78,7.827]
[1725694991167,9.63,127.9,127.84,9.63]
[1725694991364,9.63,127.9,127.84,13.52974757]
[1725694991968,3.9108,127.87,127.84,3.89974757]
[1725694992164,3.9108,127.87,127.84,9.63]
[1725694992665,3.9108,127.87,127.84,13.47226032]
[1725694993470,3.9108,127.87,127.84,13.5416]
[1725694994266,3.9108,127.87,127.84,17.54975441]
[1725694994571,3.9108,127.87,127.84,13.63815441]
[1725694995062,9.63,127.9,127.84,9.63]
[1725694995972,3.911,127.87,127.84,9.63]
[1725694997260,3.911,127.87,127.84,16.29973758]
[1725694997566,3.911,127.87,127.84,13.5416]
[1725694998370,3.911,127.87,127.84,9.63]
[1725695003981,9.63,127.9,127.84,9.63]
[1725695004783,3.9109,127.87,127.84,9.63]
[1725695005181,9.63,127.89,127.82,3.9122]
[1725695005389,3.9112,127.86,127.83,12.38972229]
[1725695005679,3.9112,127.86,127.83,9.63]
[1725695005878,3.9112,127.86,127.83,13.54379206]
[1725695008481,3.9114,127.85,127.83,9.63]
[1725695012382,3.9114,127.85,127.82,7.79704158]
[1725695012679,3.9114,127.85,127.83,9.63]
[1725695013774,3.9117,127.84,127.83,9.63]
[1725695013975,3.9117,127.84,127.81,13.5425]
[1725695014394,3.9117,127.84,127.81,17.52710337]
[1725695015989,3.9117,127.84,127.81,13.5425]
[1725695016486,3.9117,127.84,127.81,17.38812893]
[1725695016787,3.9115,127.85,127.82,3.9123]
[1725695017195,3.9115,127.85,127.82,3.87280664]
[1725695020790,6.62871907,127.87,127.81,3.9125]
[1725695020989,6.62871907,127.87,127.81,13.5425]
[1725695021586,3.9119,127.84,127.81,9.63]
[1725695022481,3.9115,127.85,127.82,3.9122]
[1725695024090,3.9112,127.86,127.82,3.9122]
[1725695025992,3.9114,127.85,127.82,3.9122]
[1725695027887,33.15,127.86,127.78,153.10999197]
[1725695028195,6.54685643,127.87,127.78,162.73999197]
[1725695028196,9.63,127.85,127.78,162.73999197]
[1725695028597,3.9122,127.83,127.79,3.9131]
[1725695030301,3.9123,127.82,127.79,3.9131]
[1725695034490,33.15,127.85,127.78,157.02339197]
[1725695034694,9.63,127.85,127.78,166.65339197]
[1725695035092,3.9124,127.82,127.78,166.65339197]
[1725695035996,3.9126,127.81,127.78,157.02339197]
[1725695036197,9.63,127.82,127.73,3.90340078]
[1725695036392,9.63,127.82,127.75,9.63]
[1725695036594,3.9131,127.8,127.76,7.87263802]
[1725695036996,3.9131,127.8,127.77,9.63]
[1725695037704,3.9131,127.8,127.77,13.54118896]
[1725695037901,3.9127,127.81,127.77,17.45488896]
[1725695040301,2.7207,127.83,127.8,9.63]
[1725695040505,2.7207,127.83,127.81,9.63]
[1725695041599,2.7207,127.83,127.81,13.5426]
[1725695042505,2.7207,127.83,127.81,9.63]
[1725695044209,3.9115,127.85,127.81,13.5425]
[1725695045103,9.63,127.86,127.8,13.5427]
[1725695045308,9.63,127.84,127.78,9.63]
[1725695046110,3.9124,127.82,127.78,13.5432]
[1725695046607,3.9124,127.82,127.78,17.45243239]
[1725695047197,3.9124,127.82,127.78,3.9132]
[1725695047402,30.20386666,127.87,127.77,7.85228098]
[1725695047403,3.9127,127.81,127.77,7.85228098]
[1725695047607,3.9127,127.81,127.77,13.5437]
[1725695048204,3.9127,127.81,127.77,17.43806244]
[1725695050011,3.9133,127.79,127.75,3.9142]
[1725695050202,3.9133,127.79,127.75,3.84839826]
[1725695050400,3.9133,127.79,127.75,9.63]
[1725695050611,12.3829,127.82,127.75,13.53045124]
[1725695050807,3.913,127.8,127.76,3.914]
[1725695051206,3.913,127.8,127.76,13.544]
[1725695051709,3.913,127.8,127.76,3.914]
[1725695051909,12.3829,127.82,127.76,9.63]
[1725695051910,3.9127,127.81,127.76,9.63]
[1725695052107,2.7529,127.82,127.78,9.63]
[1725695052410,2.7529,127.82,127.78,13.5435]
[1725695052602,6.6653,127.82,127.78,13.5435]
[1725695055412,3.9127,127.81,127.78,13.5435]
[1725695055613,3.9127,127.81,127.77,3.9137]
[1725695057218,6.6655,127.82,127.78,13.5435]
[1725695057620,6.6655,127.82,127.79,3.9132]
[1725695061920,3.9116,127.85,127.81,9.63]
[1725695062112,4.1679,127.88,127.82,9.63]
[1725695062312,4.1679,127.88,127.77,2.76545531]
[1725695062313,4.1679,127.88,127.83,9.63]
[1725695062617,2.7755,127.88,127.85,9.63]
[1725695063218,2.7755,127.88,127.86,3.9109]
[1725695063923,2.7755,127.88,127.85,13.5412]
[1725695064517,2.7755,127.88,127.85,3.9112]
[1725695066612,2.7755,127.88,127.86,3.911]
[1725695066813,2.7755,127.88,127.84,13.45296795]
[1725695067119,1.3924,127.92,127.86,9.63]
[1725695067714,3.9098,127.91,127.87,3.9107]
[1725695073529,3.9099,127.9,127.87,3.9107]
[1725695074027,3.9097,127.91,127.87,3.9107]
[1725695075220,3.9099,127.9,127.87,3.9107]
[1725695082527,3.9099,127.9,127.86,13.5409]
[1725695083030,3.9102,127.89,127.86,3.9109]
[1725695083629,9.63,127.91,127.85,13.5412]
[1725695084018,3.9103,127.89,127.85,13.5412]
[1725695085331,3.9103,127.89,127.86,3.9111]
[1725695092249,3.9099,127.9,127.87,9.63]
[1725695093352,3.9099,127.9,127.87,13.5407]
[1725695098057,3.9099,127.9,127.87,9.63]
[1725695101161,1.3924,127.92,127.87,13.5407]
[1725695101362,1.3924,127.92,127.88,9.63]
[1725695101562,5.3018,127.92,127.88,9.63]
[1725695101867,5.3018,127.92,127.88,13.5403]
[1725695103370,5.3018,127.92,127.89,3.9101]
[1725695104066,3.9096,127.91,127.89,3.9101]
[1725695104265,1.3924,127.92,127.89,3.9101]
[1725695105472,3.9093,127.92,127.89,3.9101]
[1725695106971,3.9096,127.91,127.88,3.9104]
[1725695108072,9.63,127.91,127.85,9.63]
[1725695108268,9.63,127.92,127.86,9.63]
[1725695108464,3.9097,127.91,127.88,13.5403]
[1725695108669,2.6884,127.93,127.88,9.63]
[1725695109866,2.6884,127.93,127.85,3.94611645]
[1725695110068,2.6884,127.93,127.87,9.63]
[1725695110273,2.6884,127.93,127.87,13.51753734]
[1725695110862,3.9094,127.92,127.89,3.9101]
[1725695112776,9.63,127.97,127.9,9.63]
[1725695112968,10.9133,127.97,127.9,9.63]
[1725695113272,14.74999429,127.97,127.9,9.63]
[1725695113476,3.9085,127.95,127.91,3.9093]
[1725695113864,14.74999429,127.97,127.91,3.9093]
[1725695114070,3.9088,127.94,127.91,3.9093]
[1725695115074,9.63,127.94,127.87,3.88753734]
[1725695115272,9.63,127.93,127.87,9.63]
[1725695115474,10.9796,127.93,127.87,13.44948588]
[1725695115881,3.9094,127.92,127.88,3.9102]
[1725695116070,3.9094,127.92,127.88,9.63]
[1725695116681,5.2587,127.93,127.89,3.91]
[1725695118977,5.2587,127.93,127.9,3.9098]
[1725695119972,1.3496,127.93,127.91,3.9095]
[1725695121173,1.3496,127.93,127.9,3.9097]
[1725695121769,5.2586,127.93,127.9,3.9097]
[1725695123271,1.3496,127.93,127.8,147.12652371]
[1725695123581,1.3496,127.93,127.87,9.63]
[1725695123780,2.6968,127.93,127.88,3.9102]
[1725695124079,3.9094,127.92,127.87,13.52427259]
[1725695124481,3.9094,127.92,127.88,3.9103]
[1725695125282,3.9094,127.92,127.89,3.9101]
[1725695128774,3.9094,127.92,127.89,13.5401]
[1725695131781,3.9094,127.92,127.87,3.89427259]
[1725695131782,2.6968,127.93,127.9,9.63]
[1725695131981,3.83669429,127.97,127.92,9.63]
[1725695132383,3.9083,127.96,127.92,13.5391]
[1725695132786,13.46669429,127.97,127.92,13.5391]
[1725695133580,3.9085,127.95,127.92,13.5391]
[1725695142407,13.46669429,127.97,127.92,9.63]
[1725695142804,13.46669429,127.97,127.87,3.89427259]
[1725695143008,9.63,127.96,127.89,9.63]
[1725695143712,3.9093,127.92,127.89,13.54]
[1725695146606,3.9091,127.93,127.9,3.9098]
[1725695146811,3.9091,127.93,127.9,13.5398]
[1725695150310,3.9091,127.93,127.9,3.9098]
[1725695151712,3.9093,127.92,127.89,13.54]
[1725695157923,3.9096,127.91,127.88,3.9103]
[1725695158121,3.9096,127.91,127.88,16.30132536]
[1725695158423,3.9096,127.91,127.88,13.5403]
[1725695159914,12.3691,127.93,127.81,26.75613283]
[1725695160115,12.3691,127.93,127.86,9.63]
[1725695160315,12.3691,127.93,127.86,13.6318858]
[1725695160526,3.9096,127.91,127.87,3.9107]
[1725695160916,2.7391,127.93,127.89,9.63]
[1725695161115,3.9095,127.92,127.89,9.63]
[1725695162227,3.9095,127.91,127.89,9.63]
[1725695162619,12.3691,127.93,127.87,9.63]
[1725695162816,13.6568,127.93,127.86,9.63]
[1725695163525,9.63,127.92,127.86,13.5409]
[1725695163722,9.63,127.92,127.8,147.12652371]
[1725695164026,27.4968,127.93,127.84,9.63]
[1725695164218,9.63,127.91,127.85,9.63]
[1725695165120,9.63,127.91,127.85,13.5412]
[1725695165321,3.82194696,127.9,127.85,3.9112]
[1725695165523,3.9107,127.88,127.85,3.9112]
[1725695166226,3.9108,127.87,127.84,13.5416]
[1725695166524,3.9108,127.87,127.85,2.76313078]
[1725695166724,3.9108,127.87,127.84,13.5416]
[1725695166926,3.9108,127.87,127.85,2.76418946]
[1725695167119,3.9108,127.87,127.84,13.5416]
[1725695167321,3.9108,127.87,127.85,2.76425445]
[1725695167516,3.9108,127.87,127.84,13.5416]
[1725695167721,3.9108,127.87,127.85,2.76428942]
[1725695167920,3.9108,127.87,127.84,13.5416]
[1725695168122,3.9108,127.87,127.85,2.76436334]
[1725695168322,3.9108,127.87,127.84,13.5416]
[1725695168524,3.9108,127.87,127.85,2.76435794]
[1725695168721,3.9108,127.87,127.84,13.5416]
[1725695168922,3.9108,127.87,127.85,2.76451585]
[1725695169128,3.9108,127.87,127.84,13.5416]
[1725695169331,3.9108,127.87,127.85,2.76446658]
[1725695169533,3.9108,127.87,127.84,13.5416]
[1725695169734,3.9113,127.86,127.83,9.63]
[1725695170033,3.9113,127.86,127.84,2.76621736]
[1725695170223,3.9113,127.86,127.83,9.63]
[1725695170624,3.9113,127.86,127.83,13.542]
[1725695170819,9.63,127.87,127.8,147.12652371]
[1725695171025,9.63,127.87,127.81,2.76673136]
[1725695171225,9.63,127.87,127.8,160.66922371]
[1725695171432,3.9119,127.84,127.81,2.76786499]
[1725695171627,3.9119,127.84,127.8,160.66922371]
[1725695171831,3.9119,127.84,127.81,2.76788307]
[1725695172232,3.9119,127.84,127.8,160.66922371]
[1725695173231,9.63,127.87,127.8,147.12652371]
[1725695173441,9.63,127.86,127.8,147.12652371]
[1725695173927,3.9118,127.84,127.8,151.03932371]
[1725695175427,3.9118,127.84,127.8,160.66932371]
[1725695177027,9.63,127.86,127.8,156.75652371]
[1725695177336,9.63,127.86,127.81,3.9123]
[1725695178135,3.9119,127.84,127.81,3.9123]
[1725695179931,3.9119,127.84,127.8,160.66932371]
[1725695180132,3.9119,127.84,127.8,13.5428]
[1725695180333,9.63,127.86,127.8,9.63]
[1725695180532,9.63,127.86,127.8,13.5429]
[1725695181030,3.9118,127.84,127.8,13.5429]
[1725695183936,3.912,127.83,127.8,13.5429]
[1725695185743,2.7459,127.85,127.8,9.63]
[1725695185944,2.7459,127.85,127.81,9.63]
[1725695186138,2.7459,127.85,127.77,152.22636503]
[1725695186332,3.9119,127.84,127.8,3.9127]
[1725695189844,3.9121,127.83,127.8,3.9127]
[1725695190836,3.9118,127.84,127.81,3.9125]
[1725695193251,3.912,127.83,127.8,3.9127]
[1725695194351,3.912,127.83,127.79,3.9131]
[1725695194645,9.63,127.83,127.78,2.77046062]
[1725695194850,3.91110368,127.82,127.77,156.13996503]
[1725695195150,3.9128,127.81,127.77,156.13996503]
[1725695196750,3.9128,127.81,127.77,3.9136]
[1725695201748,3.9128,127.81,127.78,3.9134]
[1725695202842,3.9131,127.8,127.77,3.9137]
[1725695206451,3.9127,127.81,127.78,3.9135]
[1725695207249,3.9127,127.81,127.77,3.9137]
[1725695207657,3.9129,127.8,127.77,3.9137]
[1725695207851,9.63,127.81,127.76,3.914]
[1725695208053,12.3282,127.81,127.76,3.914]
[1725695209357,3.9133,127.79,127.76,3.914]
[1725695210758,3.9131,127.8,127.76,3.914]
[1725695211159,6.6109,127.81,127.77,3.9137]
[1725695211566,2.6982,127.81,127.76,3.9139]
[1725695212053,3.9132,127.8,127.76,3.9139]
[1725695212961,3.9132,127.79,127.76,3.9139]
[1725695215151,9.63,127.8,127.72,3.85141397]
[1725695215356,9.63,127.8,127.73,9.63]
[1725695215556,9.63,127.8,127.74,3.82004383]
[1725695215769,3.9134,127.79,127.75,3.9142]
[1725695216168,3.9134,127.79,127.76,3.9141]
[1725695217060,3.9137,127.78,127.74,9.63]
[1725695217266,3.9137,127.78,127.73,9.63]
[1725695217965,3.9137,127.78,127.72,2.77263024]
[1725695218168,9.63,127.76,127.72,2.77263024]
[1725695218369,23.47,127.79,127.68,9.63]
[1725695218370,9.63,127.74,127.68,9.63]
[1725695218568,3.9152,127.73,127.62,621.28872226]
[1725695218871,9.63,127.73,127.67,9.63]
[1725695219163,3.9156,127.72,127.68,7.84721105]
[1725695219568,3.9156,127.72,127.68,3.9164]
[1725695221462,3.9151,127.73,127.69,3.9162]
[1725695221869,13.49599859,127.74,127.67,3.9715205]
[1725695222074,13.5452,127.73,127.69,3.9162]
[1725695222373,13.5452,127.73,127.68,9.63]
[1725695222374,9.63,127.73,127.68,9.63]
[1725695222768,3.9154,127.72,127.68,13.5464]
[1725695223372,3.9154,127.72,127.68,3.9164]
[1725695227480,13.5454,127.72,127.68,3.9164]
[1725695230478,3.9154,127.72,127.66,9.63]
[1725695230673,14.9265,127.73,127.66,9.63]
[1725695231176,14.9265,127.73,127.68,3.9163]
[1725695231374,3.9154,127.72,127.68,3.9163]
[1725695231578,13.5454,127.72,127.68,3.9163]
[1725695233383,3.9158,127.71,127.67,3.9167]
[1725695234084,3.9158,127.71,127.68,3.9165]
[1725695235479,13.5455,127.72,127.68,3.9165]
[1725695235685,3.9155,127.72,127.66,9.63]
[1725695235984,10.9574,127.76,127.69,9.63]
[1725695236183,3.9147,127.74,127.69,13.59515763]
[1725695236777,3.9147,127.74,127.7,3.9158]
[1725695237186,9.63,127.73,127.7,3.9158]
[1725695237384,9.63,127.73,127.67,9.63]
[1725695237794,13.5449,127.74,127.7,3.9158]
[1725695238879,3.9151,127.73,127.7,3.9158]
[1725695241988,13.5451,127.73,127.69,3.9161]
[1725695242185,3.9154,127.72,127.67,9.63]
[1725695243094,3.9154,127.72,127.68,3.9164]
[1725695244689,3.9154,127.72,127.69,3.9163]
[1725695244889,6.53091981,127.75,127.62,3.99327265]
[1725695244890,9.63,127.7,127.62,3.99327265]
[1725695245086,9.63,127.67,127.6,9.63]
[1725695245286,9.63,127.67,127.62,3.9184]
[1725695245487,9.63,127.67,127.62,7.90423201]
[1725695245488,3.9172,127.66,127.62,7.90423201]
[1725695245898,9.63,127.67,127.64,3.9178]
[1725695246193,9.63,127.68,127.62,13.61583201]
[1725695246390,9.63,127.68,127.62,9.63]
[1725695246784,9.63,127.68,127.64,3.9177]
[1725695247190,3.9171,127.67,127.62,9.63]
[1725695247691,3.917,127.67,127.63,3.9181]
[1725695248495,17.55978077,127.67,127.63,3.9181]
[1725695248992,13.547,127.67,127.63,3.9181]
[1725695249595,3.9174,127.66,127.62,7.85928199]
[1725695250792,9.63,127.67,127.62,3.94108199]
[1725695251097,9.63,127.67,127.6,9.63]
[1725695251599,3.9168,127.68,127.6,9.63]
[1725695251898,9.63,127.67,127.61,9.63]
[1725695252093,3.9168,127.68,127.64,3.9178]
[1725695252397,9.63,127.67,127.64,3.9178]
[1725695253401,9.63,127.67,127.63,3.918]
[1725695253702,9.63,127.66,127.63,3.918]
[1725695254098,9.63,127.66,127.62,7.84967084]
[1725695254298,13.5473,127.66,127.62,3.9183]
[1725695254495,9.63,127.66,127.55,3.96721469]
[1725695254795,9.63,127.66,127.62,3.9182]
[1725695254993,9.63,127.66,127.62,7.88953096]
[1725695255196,13.5474,127.66,127.62,7.88953096]
[1725695256900,3.9177,127.65,127.55,3.96721469]
[1725695257103,9.63,127.64,127.55,3.96721469]
[1725695257396,9.63,127.64,127.57,9.63]
[1725695257805,13.5481,127.64,127.59,3.9193]
[1725695258108,9.63,127.61,127.55,3.96721469]
[1725695258295,13.5488,127.61,127.57,3.9198]
[1725695258504,13.5488,127.61,127.57,7.9290546]
[1725695258998,13.5488,127.61,127.57,3.9198]
[1725695259305,9.63,127.61,127.57,3.9198]
[1725695259803,13.5488,127.61,127.57,3.9199]
[1725695261000,9.63,127.62,127.56,9.63]
[1725695261198,2.615,127.63,127.58,9.63]
[1725695261599,2.615,127.63,127.6,3.9188]
[1725695263300,13.5485,127.62,127.58,3.9195]
[1725695265303,9.63,127.65,127.58,9.63]
[1725695266099,3.918,127.64,127.6,3.919]
[1725695266807,9.63,127.63,127.55,3.85678946]
[1725695266999,9.63,127.62,127.56,9.63]
[1725695267195,13.5482,127.63,127.59,3.9193]
[1725695268310,3.9185,127.62,127.58,7.76472152]
[1725695268800,13.5485,127.62,127.58,7.76472152]
[1725695269006,13.5485,127.62,127.58,3.9196]
[1725695274105,9.63,127.59,127.52,139.81948044]
[1725695274413,4.0235,127.65,127.52,139.81948044]
[1725695274414,9.63,127.57,127.52,3.86110091]
[1725695274707,9.63,127.57,127.51,9.63]
[1725695274900,9.63,127.57,127.53,3.9211]
[1725695275106,9.63,127.57,127.53,7.85947403]
[1725695275307,16.3326,127.58,127.53,3.93837403]
[1725695275510,16.3326,127.58,127.53,3.9212]
[1725695275702,16.3326,127.58,127.53,7.84467526]
[1725695275897,3.92,127.57,127.53,3.92347526]
[1725695276105,12.4128,127.58,127.53,3.921]
[1725695276311,9.63,127.55,127.49,150.00857845]
[1725695276608,9.63,127.55,127.52,3.9213]
[1725695278210,9.63,127.55,127.52,7.76871308]
[1725695278607,3.9201,127.57,127.52,7.76871308]
[1725695278816,4.1559,127.58,127.52,13.47741308]
[1725695278817,8.0756,127.58,127.52,13.47741308]
[1725695279108,17.7056,127.58,127.52,13.47741308]
[1725695279308,9.63,127.56,127.53,3.921]
[1725695279501,4.1559,127.58,127.52,3.84741308]
[1725695279707,13.7859,127.58,127.52,9.63]
[1725695279905,3.93251955,127.66,127.54,9.63]
[1725695280110,9.63,127.62,127.56,9.63]
[1725695280309,13.5486,127.62,127.56,9.63]
[1725695280914,9.63,127.62,127.56,9.63]
[1725695282008,13.5482,127.63,127.59,3.9191]
[1725695282408,9.63,127.62,127.59,3.9191]
[1725695282608,13.5482,127.63,127.59,3.9191]
[1725695284218,13.5482,127.63,127.58,3.9196]
[1725695284418,3.9179,127.64,127.58,3.90147178]
[1725695284622,4.1371,127.65,127.6,9.63]
[1725695284920,4.1371,127.65,127.62,3.9182]
[1725695286218,4.1371,127.65,127.59,13.57083503]
[1725695286219,13.7671,127.65,127.59,13.57083503]
[1725695286519,17.6848,127.65,127.59,9.63]
[1725695286911,17.6848,127.65,127.6,3.9189]
[1725695287318,17.6848,127.65,127.59,13.64686904]
[1725695287918,17.6848,127.65,127.61,3.9187]
[1725695290010,2.7759,127.65,127.6,9.63]
[1725695290719,9.63,127.69,127.63,9.63]
[1725695291030,3.9168,127.68,127.64,3.9178]
[1725695291922,3.917,127.67,127.63,3.918]
[1725695292422,9.63,127.67,127.61,9.63]
[1725695292627,3.9172,127.66,127.62,3.9182]
[1725695298327,13.5478,127.64,127.6,3.9189]
[1725695298627,9.63,127.64,127.58,9.63]
[1725695298827,5.241,127.63,127.59,3.9192]
[1725695299227,1.3229,127.63,127.58,9.63]
[1725695299727,1.3229,127.63,127.58,13.59999929]
[1725695300727,3.9185,127.62,127.58,17.51959929]
[1725695302424,3.9188,127.61,127.57,3.9198]
[1725695302619,13.5488,127.61,127.57,3.9198]
[1725695303220,13.5488,127.61,127.57,7.90530822]
[1725695305130,3.919,127.6,127.57,7.90530822]
[1725695306632,13.5488,127.61,127.57,7.90530822]
[1725695306933,3.9188,127.61,127.57,7.90530822]
[1725695312535,3.9192,127.6,127.57,3.98550822]
[1725695313537,3.9188,127.61,127.57,7.90540822]
[1725695315039,3.9185,127.62,127.57,3.98550822]
[1725695315246,1.3229,127.63,127.58,13.5496]
[1725695315448,1.3229,127.63,127.58,17.51480178]
[1725695316052,3.9185,127.62,127.58,17.51480178]
[1725695316252,3.9185,127.62,127.58,13.5496]
[1725695316852,1.3742,127.65,127.61,9.63]
[1725695317242,5.2918,127.65,127.61,13.5486]
[1725695317548,11.0042,127.65,127.51,7.8433]
[1725695317744,11.0042,127.65,127.58,9.63]
[1725695317943,11.0042,127.65,127.59,6.77714267]
[1725695318739,3.918,127.64,127.6,3.9189]
[1725695318944,3.918,127.64,127.59,2.77895693]
[1725695319144,9.63,127.64,127.58,3.92837649]
[1725695319339,11.0144,127.63,127.57,13.5172314]
[1725695319747,11.0144,127.63,127.58,2.77895693]
[1725695320149,3.9186,127.62,127.57,17.4369314]
[1725695323352,3.9188,127.61,127.57,3.9197]
[1725695323544,3.9188,127.61,127.57,6.69938178]
[1725695323740,3.9188,127.61,127.57,3.9197]
[1725695325354,3.9188,127.61,127.58,2.7795375]
[1725695325654,3.9188,127.61,127.58,6.6988754]
[1725695325848,3.9188,127.61,127.58,3.9196]
[1725695326653,3.9186,127.62,127.58,3.9196]
[1725695327153,3.9186,127.62,127.58,2.77873749]
[1725695327354,3.9186,127.62,127.57,12.40935217]
[1725695327552,5.3027,127.63,127.58,2.77873969]
[1725695327853,1.3844,127.63,127.58,2.77873969]
[1725695328050,11.0144,127.63,127.57,12.40873969]
[1725695328251,3.9184,127.62,127.58,3.9195]
[1725695330152,3.9184,127.62,127.58,6.69860689]
[1725695330354,3.9184,127.62,127.58,3.9195]
[1725695330659,3.9184,127.62,127.58,6.69860689]
[1725695330850,3.9184,127.62,127.58,3.9195]
[1725695331048,3.9184,127.62,127.58,6.69860689]
[1725695331247,3.9184,127.62,127.58,3.9195]
[1725695334156,11.0144,127.63,127.58,3.9195]
[1725695334653,3.9186,127.62,127.58,3.9195]
[1725695336255,3.9189,127.61,127.57,6.69845689]
[1725695336450,11.0144,127.63,127.56,13.62476336]
[1725695336650,3.9187,127.62,127.58,3.9196]
[1725695337963,3.9188,127.61,127.58,3.9196]
[1725695339254,1.3844,127.63,127.56,13.62476336]
[1725695339456,1.3844,127.63,127.59,9.63]
[1725695340054,1.3844,127.63,127.6,3.9189]
[1725695341757,5.2918,127.65,127.61,3.9186]
[1725695341958,1.3742,127.65,127.6,9.63]
[1725695342362,1.3742,127.65,127.61,3.86423651]
[1725695342861,1.3742,127.65,127.62,3.9182]
[1725695345361,11.0042,127.65,127.58,9.63]
[1725695345557,11.0042,127.65,127.59,3.83628156]